[Event "Serbian League 2024"]
[Site "Bajina Basta"]
[Date "2024.10.01"]
[Round "5.1"]
[White "Predke, Alexandr"]
[Black "Kuybokarov, Temur"]
[Result "1/2-1/2"]
[Annotator "TA"]
[ECO "A33"]
[WhiteElo "2671"]
[BlackElo "2562"]
[PlyCount "85"]
[EventDate "2024.09.26"]
[EventType "team-tourn"]
[EventCountry "SRB"]
[SourceTitle "playchess.com"]
[Source "ChessBase"]
[SourceQuality "1"]
[TimeControl "40/5400+30:1800+30"]

{[%evp 21,85,0,0,0,0,0,0,0,0,0,0,0,0,0,0,0,0,0,12,11,6,2,7,6,9,10,14,16,14,8,6,10,7,0,0,0,0,0,0,0,2,0,1,0,0,0,1,0,0,0,8,8,8,8,8,8,8,8,8,8,8,8,8,8,8,8]} 1. Nf3 {[%emt 0:02:15]} Nf6 {[%emt 0:00:12]} 2. c4 {[%emt 0:00:15]} c5 {[%emt 0:00:04]} 3. Nc3 {[%emt 0:00:42]} Nc6 {[%emt 0:00:06]} 4. d4 {[%emt 0:01:23]} cxd4 {[%emt 0:00:05]} 5. Nxd4 {[%emt 0:00:04]} e6 {[%emt 0:00:05][%cal Be7e6,Be6e5,Be5f4][%mdl 32]} 6. Ndb5 {[%emt 0:08:25]} d5 {[%emt 0:00:57]} 7. Bf4 {[%emt 0:00:06]} e5 {[%emt 0:00:22]} 8. cxd5 {[%emt 0:00:04]} exf4 {[%emt 0:00:16]} 9. dxc6 {[%emt 0:00:04]} bxc6 {[%emt 0:00:09]} 10. Qxd8+ {[%emt 0:00:08]} Kxd8 {[%emt 0:00:05]} 11. Nd4 {[%emt 0:00:21]} Bd7 {[%emt 0:18:53] The position is equal.} 12. g3 {[%emt 0:01:07]} Bb4 {[%emt 0:21:15]} 13. gxf4 {[%emt 0:43:59]} Nd5 {[%emt 0:03:19][%cal Bf6d5,Bd5c3,Bc3e4,Be4f2][%mdl 32]} 14. O-O-O {[%emt 0:00:42][%cal Ba1d1,Bd1d2,Bd2c2][%mdl 32]} Bxc3 {[%emt 0:12:39]} 15. bxc3 {[%emt 0:00:04]} Nxc3 {[%emt 0:00:45]} 16. Rd2 {[%emt 0:00:04]} Ne4 {[%emt 0:01:29]} 17. Rc2 {[%emt 0:00:06]} Nxf2 {[%emt 0:01:18]} 18. Rg1 {[%emt 0:00:16]} g6 {[%emt 0:00:58]} 19. Bg2 {[%emt 0:03:28]} Rc8 {[%emt 0:04:06]} 20. Nxc6+ {[%emt 0:01:27]} Bxc6 {[%emt 0:01:58]} 21. Bxc6 {[%emt 0:00:09]} Ke7 {[%emt 0:01:05]} 22. Rg2 {[%emt 0:02:53]} Nh3 {[%emt 0:09:33]} 23. e3 {[%emt 0:00:16]} Rhd8 {[%emt 0:01:45]} 24. Bb5 {[%emt 0:07:05]} h6 {[%emt 0:06:20]} 25. Ba6 {[%emt 0:11:59]} (25. a4 {is more complex.} g5 26. Rg3 Nf2 27. fxg5 Ne4 28. Rg4) 25... Rxc2+ {[%emt 0:00:24]} 26. Rxc2 $11 {[%emt 0:00:03][%mdl 4096] Endgame. KRB-KRN} g5 {[%emt 0:01:52]} 27. Bf1 {[%emt 0:01:42]} Ng1 {[%emt 0:00:28]} 28. Rc5 {[%emt 0:07:11]} gxf4 {[%emt 0:03:24]} 29. exf4 {[%emt 0:00:03] And now Rc3 would win.} Rd4 {[%emt 0:01:04]} 30. Rc7+ {[%emt 0:00:33]} Kf6 {[%emt 0:00:35]} 31. Rxa7 {[%emt 0:01:18]} Rxf4 {[%emt 0:00:50]} 32. Bb5 {[%emt 0:00:22]} Rh4 {[%emt 0:02:25]} 33. Be8 {[%emt 0:02:12]} Rxh2 {[%emt 0:00:26]} 34. Rxf7+ {[%emt 0:00:31]} Ke5 {[%emt 0:00:09]} 35. a4 {[%emt 0:00:30]} h5 {[%emt 0:02:31]} 36. Rh7 {[%emt 0:04:34]} Ne2+ {[%emt 0:02:25]} 37. Kb2 {[%emt 0:00:18][%cal Oa4a5]} Nf4+ {[%emt 0:00:19]} 38. Kb3 {[%emt 0:00:22]} Rh3+ {[%emt 0:03:24]} 39. Kc4 {[%emt 0:00:05]} Nd5 {[%emt 0:00:05]} 40. Rxh5+ {[%emt 0:02:46]} Rxh5 {[%emt 0:00:05]} 41. Bxh5 {[%emt 0:30:03] [#] Strongly threatening Kc5.} Nb6+ {[%emt 0:30:06]} 42. Kb5 {[%emt 0:00:02]} Nxa4 {[%emt 0:00:04]} 43. Kxa4 {[%emt 0:00:02] Not much happened in this game.   Weighted Error Value: White=0.01 (flawless) /Black=0.01 (flawless) .  OK:         	White=14    	Black=21     Best:        	---       	Black=1} 1/2-1/2

[Event "Serbian League 2024"]
[Site "Bajina Basta"]
[Date "2024.10.01"]
[Round "5.2"]
[White "Sychev, Klementy"]
[Black "Puranik, Abhimanyu"]
[Result "1/2-1/2"]
[Annotator "TA"]
[ECO "C64"]
[WhiteElo "2532"]
[BlackElo "2639"]
[PlyCount "44"]
[EventDate "2024.09.26"]
[EventType "team-tourn"]
[EventCountry "SRB"]
[SourceTitle "playchess.com"]
[Source "ChessBase"]
[SourceQuality "1"]
[TimeControl "40/5400+30:1800+30"]

{[%evp 10,44,42,43,37,34,39,29,37,41,41,18,34,13,15,16,18,11,11,0,0,0,0,0,0,0,0,0,0,0,0,0,0,0,0,0,0]} 1. e4 {[%emt 0:00:11]} e5 {[%emt 0:00:19]} 2. Nf3 {[%emt 0:00:07]} Nc6 {[%emt 0:00:09]} 3. Bb5 {[%emt 0:00:11]} a6 {[%emt 0:00:42]} 4. Ba4 {[%emt 0:00:31]} Bc5 {[%emt 0:01:34]} 5. c3 {[%emt 0:03:43]} Nge7 {[%emt 0:00:26]} 6. O-O {[%emt 0:00:17]} Ng6 {[%emt 0:00:38]} 7. d4 {[%emt 0:00:17]} Ba7 {[%emt 0:00:10]} 8. Bxc6 {[%emt 0:00:40]} dxc6 {[%emt 0:00:48] White has an edge.} 9. Nxe5 {[%emt 0:00:14]} Nxe5 {[%emt 0:00:38]} 10. dxe5 {[%emt 0:00:06]} O-O {[%emt 0:00:44]} 11. Qe2 {[%emt 0:20:47]} (11. Qxd8 {simplifies} Rxd8 12. Nd2 h6 13. Re1) 11... Qh4 {[%emt 0:00:18] The position is equal.} 12. Nd2 {[%emt 0:03:08]} Bg4 {[%emt 0:00:12]} 13. Nf3 {[%emt 0:00:10]} Qh5 {[%emt 0:00:06]} 14. Be3 {[%emt 0:11:59]} Bxe3 {[%emt 0:07:36]} 15. Qxe3 {[%emt 0:00:08]} Bxf3 {[%emt 0:00:17]} 16. Qxf3 {[%emt 0:00:08]} Qxe5 {[%emt 0:00:24]} 17. Rad1 {[%emt 0:12:26]} Rad8 {[%emt 0:16:07]} 18. Qg3 {[%emt 0:12:12]} Qe7 {[%emt 0:09:19]} 19. Qf4 {[%emt 0:03:54]} Rd7 {[%emt 0:06:33]} 20. Rxd7 {[%emt 0:03:21]} Qxd7 {[%emt 0:00:04]} 21. g3 {[%emt 0:01:01]} g6 {[%emt 0:04:35]} 22. Re1 {[%emt 0:06:29]} Re8 {[%emt 0:04:19] Weighted Error Value: White=0.03 (flawless) /Black=0.01 (flawless) .  OK:         	White=7     	Black=8} 1/2-1/2

[Event "Serbian League 2024"]
[Site "Bajina Basta"]
[Date "2024.10.01"]
[Round "5.3"]
[White "Gagunashvili, Merab"]
[Black "Maksimovic, Bojan"]
[Result "1/2-1/2"]
[Annotator "RC"]
[ECO "A40"]
[WhiteElo "2550"]
[BlackElo "2503"]
[PlyCount "127"]
[EventDate "2024.09.26"]
[EventType "team-tourn"]
[EventCountry "SRB"]
[SourceTitle "playchess.com"]
[Source "ChessBase"]
[SourceQuality "1"]
[TimeControl "40/5400+30:1800+30"]

1. d4 {[%emt 0:00:04]} e6 {[%emt 0:00:47]} 2. c4 {[%emt 0:00:32]} Bb4+ {[%emt 0:01:48]} 3. Bd2 {[%emt 0:00:50]} a5 {[%emt 0:04:26]} 4. g3 {[%emt 0:02:59]} d5 {[%emt 0:09:48]} 5. Qc2 {[%emt 0:02:25]} dxc4 {[%emt 0:05:56]} 6. Nf3 {[%emt 0:12:03]} Nc6 {[%emt 0:06:42]} 7. Qxc4 {[%emt 0:00:48]} Qd5 {[%emt 0:01:41]} 8. Qd3 {[%emt 0:08:05]} Nf6 {[%emt 0:29:46]} 9. Nc3 {[%emt 0:02:49]} Bxc3 {[%emt 0:01:34]} 10. bxc3 {[%emt 0:03:44]} b6 {[%emt 0:04:13]} 11. Bg2 {[%emt 0:28:25]} Ba6 {[%emt 0:00:04]} 12. Qc2 {[%emt 0:00:20]} O-O-O {[%emt 0:03:57]} 13. O-O {[%emt 0:01:37]} Qc4 {[%emt 0:00:25]} 14. e3 {[%emt 0:01:03]} Qd3 {[%emt 0:03:03]} 15. Qxd3 {[%emt 0:04:37]} Bxd3 {[%emt 0:00:02]} 16. Ng5 {[%emt 0:02:25]} Bxf1 {[%emt 0:00:27]} 17. Bxc6 {[%emt 0:09:45]} Bd3 {[%emt 0:00:34]} 18. Nxf7 {[%emt 0:00:14]} Be4 {[%emt 0:00:17]} 19. Bxe4 {[%emt 0:01:35]} Nxe4 {[%emt 0:00:04]} 20. Be1 {[%emt 0:00:09]} Nd6 {[%emt 0:01:14]} 21. Nxh8 {[%emt 0:00:06]} Rxh8 {[%emt 0:00:03]} 22. f3 {[%emt 0:00:13]} Nc4 {[%emt 0:01:08]} 23. Kf2 {[%emt 0:00:14]} c6 24. Ke2 {[%emt 0:17:28]} b5 {[%emt 0:24:31]} 25. g4 {[%emt 0:00:00]} Kd7 {[%emt 0:00:00]} 26. Bg3 {[%emt 0:00:00]} a4 {[%emt 0:00:00]} 27. e4 {[%emt 0:00:00]} Ke7 {[%emt 0:00:00]} 28. Rg1 {[%emt 0:00:00]} Kf7 {[%emt 0:00:00]} 29. Bf4 {[%emt 0:00:00]} h5 {[%emt 0:00:00]} 30. h3 {[%emt 0:00:00]} hxg4 {[%emt 0:00:00]} 31. hxg4 {[%emt 0:00:00]} Ke7 {[%emt 0:00:00]} 32. Rd1 {[%emt 0:00:00]} Kd7 {[%emt 0:00:00]} 33. Bg3 {[%emt 0:00:00]} Nb2 {[%emt 0:00:00]} 34. Rb1 {[%emt 0:00:00]} Nc4 {[%emt 0:00:00]} 35. Rd1 {[%emt 0:00:56]} Nb2 {[%emt 0:00:00]} 36. Rb1 {[%emt 0:01:40]} Nc4 {[%emt 0:00:00]} 37. d5 {[%emt 0:01:07]} exd5 {[%emt 0:03:42]} 38. exd5 {[%emt 0:00:03]} Re8+ {[%emt 0:00:27]} 39. Kf2 {[%emt 0:00:16]} Nb6 {[%emt 0:02:36]} 40. dxc6+ {[%emt 0:01:31]} Kxc6 {[%emt 0:00:01]} 41. Re1 {[%emt 0:32:24]} Rxe1 {[%emt 0:02:38]} 42. Kxe1 {[%emt 0:00:00]} Kd5 {[%emt 0:01:13]} 43. Kd2 {[%emt 0:00:00]} Kc4 {[%emt 0:07:26]} 44. Be5 {[%emt 0:00:00]} g6 {[%emt 0:00:03]} 45. f4 {[%emt 0:00:00]} Kd5 {[%emt 0:00:05]} 46. Kd3 {[%emt 0:00:00]} Nc4 {[%emt 0:00:14]} 47. Bd4 {[%emt 0:00:00]} Nb2+ {[%emt 0:01:33]} 48. Kc2 {[%emt 0:00:00]} Nc4 {[%emt 0:00:04]} 49. f5 {[%emt 0:00:00]} gxf5 {[%emt 0:00:04]} 50. gxf5 {[%emt 0:00:00]} Nd6 {[%emt 0:05:06]} 51. f6 {[%emt 0:00:00]} b4 {[%emt 0:00:05]} 52. Bg1 {[%emt 0:00:00]} bxc3 {[%emt 0:01:53]} 53. Bh2 {[%emt 0:00:00]} Ke6 {[%emt 0:00:40]} 54. Bxd6 {[%emt 0:00:00]} Kxf6 {[%emt 0:01:28]} 55. Kxc3 {[%emt 0:00:00]} Ke6 {[%emt 0:00:07]} 56. Bg3 {[%emt 0:00:00]} Kd5 {[%emt 0:00:11]} 57. Kb4 {[%emt 0:00:00]} Kc6 {[%emt 0:00:02]} 58. Ka5 {[%emt 0:00:00]} Kb7 {[%emt 0:00:04]} 59. Kxa4 {[%emt 0:01:17]} Ka8 {[%emt 0:00:06]} 60. Kb5 {[%emt 0:00:06]} Kb7 {[%emt 0:00:04]} 61. a4 {[%emt 0:00:10]} Ka8 {[%emt 0:00:05]} 62. a5 {[%emt 0:00:08]} Kb7 {[%emt 0:00:04]} 63. a6+ {[%emt 0:00:06]} Ka8 {[%emt 0:00:02]} 64. Kb6 {[%emt 0:00:06]} 1/2-1/2

[Event "Serbian League 2024"]
[Site "Bajina Basta"]
[Date "2024.10.01"]
[Round "5.4"]
[White "Pap, Misa"]
[Black "Draskovic, Luka"]
[Result "1/2-1/2"]
[Annotator "RC"]
[ECO "C70"]
[WhiteElo "2389"]
[BlackElo "2497"]
[PlyCount "58"]
[EventDate "2024.09.26"]
[EventType "team-tourn"]
[EventCountry "SRB"]
[SourceTitle "playchess.com"]
[Source "ChessBase"]
[SourceQuality "1"]
[TimeControl "40/5400+30:1800+30"]

1. e4 {[%emt 0:00:04]} e5 {[%emt 0:00:12]} 2. Nf3 {[%emt 0:00:07]} Nc6 {[%emt 0:00:05]} 3. Bb5 {[%emt 0:00:27]} a6 {[%emt 0:00:56]} 4. Ba4 {[%emt 0:00:05]} Nge7 {[%emt 0:01:30]} 5. c3 {[%emt 0:02:11]} Ng6 {[%emt 0:00:40]} 6. d4 {[%emt 0:01:54]} exd4 {[%emt 0:00:45]} 7. cxd4 {[%emt 0:01:20]} Bb4+ {[%emt 0:00:42]} 8. Nc3 {[%emt 0:01:01]} d5 {[%emt 0:01:20]} 9. O-O {[%emt 0:04:00]} dxe4 {[%emt 0:01:16]} 10. Ng5 {[%emt 0:10:02]} Be7 {[%emt 0:34:57]} 11. Ncxe4 {[%emt 0:22:16]} O-O {[%emt 0:21:15]} 12. d5 {[%emt 0:13:29]} Bxg5 {[%emt 0:12:47]} 13. Bxg5 {[%emt 0:09:47]} Nce7 {[%emt 0:00:05]} 14. d6 {[%emt 0:07:42]} cxd6 {[%emt 0:00:25]} 15. Qxd6 {[%emt 0:05:09]} Be6 {[%emt 0:02:37]} 16. Rfe1 {[%emt 0:02:18]} b5 {[%emt 0:01:29]} 17. Bd1 {[%emt 0:01:33]} Qxd6 {[%emt 0:02:30]} 18. Nxd6 {[%emt 0:00:15]} Rad8 {[%emt 0:01:29]} 19. Ne4 {[%emt 0:02:16]} h6 {[%emt 0:02:28]} 20. Bxe7 {[%emt 0:01:31]} Nxe7 {[%emt 0:00:02]} 21. Nc5 {[%emt 0:01:42]} Rd6 {[%emt 0:01:23]} 22. Bb3 {[%emt 0:01:16]} Bxb3 {[%emt 0:00:41]} 23. axb3 {[%emt 0:00:14]} Rc8 {[%emt 0:04:05]} 24. b4 {[%emt 0:01:52]} Nd5 {[%emt 0:01:26]} 25. Red1 {[%emt 0:02:33]} Rcc6 {[%emt 0:00:27]} 26. Nb7 {[%emt 0:01:13]} Rd7 {[%emt 0:00:16]} 27. Nc5 {[%emt 0:00:17]} Rdd6 {[%emt 0:00:04]} 28. Nb7 {[%emt 0:00:32]} Rd7 {[%emt 0:00:05]} 29. Nc5 {[%emt 0:00:05]} Rdd6 {[%emt 0:00:07]} 1/2-1/2

[Event "Serbian League 2024"]
[Site "Bajina Basta"]
[Date "2024.10.01"]
[Round "5.5"]
[White "Bryakin, Mikhail"]
[Black "Damljanovic, Branko"]
[Result "0-1"]
[Annotator "TA"]
[ECO "A41"]
[WhiteElo "2438"]
[BlackElo "2354"]
[PlyCount "102"]
[EventDate "2024.09.26"]
[EventType "team-tourn"]
[EventCountry "SRB"]
[SourceTitle "playchess.com"]
[Source "ChessBase"]
[SourceQuality "1"]
[TimeControl "40/5400+30:1800+30"]

{[%evp 31,102,-29,0,-20,0,-41,-13,-25,-27,-104,-54,-70,-54,-62,-62,-64,-45,-83,-61,-127,-100,-81,-79,-161,-174,-176,-161,-181,-161,-179,-127,-124,-118,-131,-120,-125,-132,-120,-127,-140,-124,-168,-164,-174,-177,-180,-170,-174,-133,-377,-355,-434,-420,-419,-426,-447,-442,-552,-550,-852,-840,-1365,-745,-29981,-29982,-29986,0,-29987,-29988,-29995,-29996,-29998,-29999]} 1. d4 {[%emt 0:00:06]} d6 {[%emt 0:10:39]} 2. c4 {[%emt 0:00:08]} e5 {[%emt 0:00:39]} 3. Nf3 {[%emt 0:00:06]} Nc6 {[%emt 0:00:05]} 4. Nc3 {[%emt 0:01:48]} Bd7 {[%emt 0:00:49]} 5. d5 {[%emt 0:01:25]} Nce7 {[%emt 0:00:03]} 6. e4 {[%emt 0:01:24] A41: 1 d4 d6: Tartakower System and Modern Defence.} Nf6 {[%emt 0:02:22]} 7. Be2 {[%emt 0:11:44]} Ng6 {[%emt 0:00:31]} 8. g3 {[%emt 0:02:12]} Be7 {[%emt 0:01:05]} 9. h4 {[%emt 0:01:43]} h6 {[%emt 0:02:52]} 10. h5 $146 {[%emt 0:06:18]} ({Predecessor:} 10. Be3 Ng4 11. Bd2 c6 12. h5 Qb6 13. c5 Qxc5 14. O-O Qb6 15. hxg6 fxg6 16. Nh4 Nxf2 17. Rxf2 Bxh4 18. gxh4 {1-0 Bluebaum,M (2669)-Demchenko,A (2623) Titled Tuesday intern op 02nd May Early blitz 2023 (6)}) 10... Nf8 {[%emt 0:01:09]} 11. Nh4 {[%emt 0:02:55]} N8h7 {[%emt 0:04:18]} 12. Be3 {[%emt 0:11:20]} Qc8 {[%emt 0:05:49]} 13. Qd3 {[%emt 0:04:34]} c6 {[%emt 0:05:31]} 14. Rc1 {[%emt 0:02:17]} O-O {[%emt 0:01:09]} 15. b4 {[%emt 0:11:24]} Re8 {[%emt 0:07:21]} 16. Bd2 {[%emt 0:04:54]} cxd5 {[%emt 0:23:28]} 17. cxd5 {[%emt 0:01:01]} Bd8 {[%emt 0:00:26]} 18. O-O {[%emt 0:13:06]} Qb8 {[%emt 0:02:37]} (18... Bb6 $5) 19. Kg2 {[%emt 0:06:28]} Bb6 {[%emt 0:04:21]} 20. Be3 {[%emt 0:01:51]} (20. g4 $11) 20... Qd8 {[%emt 0:00:21]} ({Better is} 20... Bxe3 $17 21. Qxe3 Ng5) 21. Bd2 {[%emt 0:09:15]} a5 {[%emt 0:09:13]} (21... Ng5 {looks sharper.} 22. Rh1 Rc8 23. f3 Nxh5 24. Nf5 Bxf5 25. exf5 Nf6) 22. b5 {[%emt 0:00:28]} a4 {[%emt 0:00:02]} 23. Rh1 {[%emt 0:00:26]} a3 $1 {[%emt 0:00:34]} 24. Nd1 {[%emt 0:01:45]} Ra4 {[%emt 0:00:32]} 25. Nc3 {[%emt 0:01:20]} (25. f3 $15) 25... Rd4 {[%emt 0:01:25]} 26. Qc2 {[%emt 0:00:01]} Ng5 {[%emt 0:01:19]} 27. Bxg5 {[%emt 0:00:35]} (27. Nf3 $17 Nxf3 28. Bxf3) 27... hxg5 $19 {[%emt 0:02:05]} 28. Nf3 {[%emt 0:00:01]} Rb4 {[%emt 0:01:57]} 29. Rb1 {[%emt 0:00:31]} Rxb1 {[%emt 0:00:25]} 30. Qxb1 {[%emt 0:00:07]} Ng4 {[%emt 0:07:36]} ({Black should play} 30... Qc7 $1 $19 {[%cal Rc7c3]} 31. Na4 Bxf2) 31. Nd1 $17 {[%emt 0:00:16]} Qf6 $1 {[%emt 0:00:27]} 32. Rf1 {[%emt 0:00:25] [#]} Qh6 $1 {[%emt 0:02:07]} 33. Rh1 {[%emt 0:01:19]} Nf6 {[%emt 0:01:44]} 34. Nd2 {[%emt 0:00:44]} g4 {[%emt 0:00:22]} 35. Nc4 {[%emt 0:00:15]} Bc5 {[%emt 0:00:02]} 36. Nde3 {[%emt 0:00:31]} Qg5 {[%emt 0:01:19]} (36... Nxh5 37. Nxg4 (37. Bxg4 Bxg4 38. Nxg4 Qg5 $11) 37... Qg6 38. Rh4 $17) 37. Rh4 {[%emt 0:00:04]} b6 {[%emt 0:00:17]} (37... Nxh5 38. Qh1 (38. Bxg4 Nf4+ 39. Kf3 Ng6 $14) 38... g6 39. Bxg4 Nf4+ 40. gxf4 $16) 38. Bd1 {[%emt 0:02:28]} Kf8 {[%emt 0:00:36]} (38... Nxh5 39. Bxg4 (39. Nxg4 $2 Nf4+ 40. Kg1 Rc8 $19) 39... Nf4+ 40. Kf3 $14 (40. gxf4 Qxh4 41. Bxd7 Re7 $17)) 39. Be2 {[%emt 0:00:22]} Ke7 {[%emt 0:00:16]} (39... Nxh5 40. Bxg4 Bxg4 (40... Nf4+ 41. Kg1 $16) 41. Rxg4 $11) 40. Bd1 $2 {[%emt 0:02:14]} (40. Qc1 $17 Kf8 (40... Nxe4 41. Bxg4 Bxe3 42. Nxe3 $11) 41. Qc2) 40... Rh8 $19 {[%emt 0:00:25]} (40... Nxh5 41. Bxg4 (41. Nxg4 $2 Nf4+ 42. Kg1 Ng6 $19) 41... Rh8 42. Bxd7 Kxd7 43. Kh2 $19) 41. Be2 {[%emt 0:07:04]} Rxh5 {[%emt 0:04:23]} ({Don't do} 41... Nxh5 42. Rh1 (42. Bxg4 $2 Nf4+ 43. Kg1 Rxh4 $19) 42... Nf4+ 43. gxf4 Rxh1 44. Qxh1) 42. Rxh5 {[%emt 0:00:44]} Qxh5 {[%emt 0:00:03]} ({Less strong is} 42... Nxh5 43. Qd1 Nf6 (43... Bxb5 44. Nxd6 Bxe2 45. Nef5+ Kf8 46. Qxe2 $19) 44. Bd3 $19) 43. Kg1 {[%emt 0:03:10]} g6 {[%emt 0:03:48]} 44. Nd2 {[%emt 0:03:44]} Nh7 {[%emt 0:14:45]} 45. Qd3 {[%emt 0:12:49]} Ng5 {[%emt 0:05:44]} 46. Kg2 {[%emt 0:03:42]} Nh3 {[%emt 0:02:29]} 47. Nb3 {[%emt 0:00:50]} Nf4+ {[%emt 0:01:09]} 48. gxf4 {[%emt 0:00:03]} Qh3+ {[%emt 0:00:05]} 49. Kg1 {[%emt 0:00:04] [#]} g3 $1 {[%emt 0:00:05]} ({Worse is} 49... exf4 50. Nxc5 fxe3 51. Nxd7 $11) 50. Nf5+ {[%emt 0:02:57]} Bxf5 {[%emt 0:00:44]} 51. Nxc5 {[%emt 0:00:20]} Qh2+ {[%emt 0:00:07]} 0-1

[Event "Serbian League 2024"]
[Site "Bajina Basta"]
[Date "2024.10.01"]
[Round "5.6"]
[White "Ivanovic, Marko"]
[Black "Radovanovic, Mihajlo"]
[Result "1/2-1/2"]
[Annotator "TA"]
[ECO "D58"]
[WhiteElo "2240"]
[BlackElo "2426"]
[PlyCount "76"]
[EventDate "2024.09.26"]
[EventType "team-tourn"]
[EventCountry "SRB"]
[SourceTitle "playchess.com"]
[Source "ChessBase"]
[SourceQuality "1"]
[TimeControl "40/5400+30:1800+30"]

{[%evp 21,76,58,40,14,35,13,22,10,15,29,22,27,30,-4,28,0,12,0,0,0,0,0,6,5,6,9,15,16,10,0,0,0,84,0,0,0,0,0,0,0,0,0,8,0,0,0,0,0,0,0,0,0,0,0,0,0,50]} 1. d4 {[%emt 0:06:50]} d5 {[%emt 0:00:26]} 2. c4 {[%emt 0:00:58]} e6 {[%emt 0:00:23]} 3. Nc3 {[%emt 0:00:06]} Be7 {[%emt 0:00:32]} 4. Nf3 {[%emt 0:00:39]} Nf6 {[%emt 0:00:08]} 5. Bg5 {[%emt 0:00:07]} h6 {[%emt 0:00:16]} 6. Bh4 {[%emt 0:00:34]} O-O {[%emt 0:00:17]} 7. e3 {[%emt 0:00:04]} b6 {[%emt 0:00:10]} 8. Qc2 {[%emt 0:00:11]} Bb7 {[%emt 0:01:15]} 9. Bxf6 {[%emt 0:01:46]} Bxf6 {[%emt 0:00:07]} 10. O-O-O {[%emt 0:00:04]} Nd7 {[%emt 0:07:41]} 11. cxd5 {[%emt 0:04:26]} exd5 {[%emt 0:00:07]} 12. g4 {[%emt 0:00:06]} g6 {[%emt 0:01:53][%cal Bg7g6,Bg6g5][%mdl 32]} 13. h4 {[%emt 0:00:18][%cal Og4g5,Bh2h4,Bh4h5][%mdl 32]} Bg7 {[%emt 0:00:06]} 14. h5 {[%emt 0:01:16]} g5 {[%emt 0:00:11]} 15. Bd3 {[%emt 0:03:11]} Re8 {[%emt 0:15:56]} 16. Kb1 {[%emt 0:03:24]} a6 {[%emt 0:08:09]} 17. Bf5 {[%emt 0:04:26]} b5 {[%emt 0:02:13]} 18. Rhe1 {[%emt 0:11:09]} Nb6 $1 {[%emt 0:10:10]} 19. e4 {[%emt 0:14:22]} b4 {[%emt 0:12:46]} 20. Nxd5 {[%emt 0:01:44]} Nxd5 {[%emt 0:00:06]} 21. exd5 {[%emt 0:00:06]} Bxd5 {[%emt 0:06:35]} 22. Ne5 {[%emt 0:00:56]} a5 {[%emt 0:01:02]} 23. Bh7+ {[%emt 0:10:47]} (23. Bd7 $2 Rxe5 24. dxe5 Qxd7 $19) 23... Kh8 {[%emt 0:01:15][%cal Oc7c5]} 24. Be4 {[%emt 0:00:11]} a4 {[%emt 0:08:11][%cal Od5a2]} 25. Qc5 {[%emt 0:21:15]} (25. Bxd5 {simplifies} Qxd5 26. Qe4 Qxe4+ 27. Rxe4 Kg8 28. Rde1) 25... Bxe4+ {[%emt 0:01:03]} (25... Rxe5 $2 26. dxe5 Bxe4+ 27. Kc1 $18) 26. Rxe4 {[%emt 0:00:10]} Kg8 {[%emt 0:01:54]} (26... Rxe5 $11 27. Rxe5 Bxe5 28. Qxe5+ Kg8) 27. Rde1 {[%emt 0:02:19]} (27. Qxb4 $2 Rxe5 28. Rxe5 Bxe5 $19) (27. Nc6 $1 $16 {[%cal Rc6d8]} Qf6 28. Ne7+ Kh7 29. Qc2 (29. Qxc7 b3 $17) (29. Qxb4 $2 Bf8 $19)) 27... b3 $11 {[%emt 0:02:51] The position is equal.} 28. axb3 {[%emt 0:03:55]} axb3 {[%emt 0:00:28][%cal Oe8e5] [#] And now ...Rxe5! would win.} 29. Qc4 {[%emt 0:00:11] Active counter play!} Bxe5 {[%emt 0:01:49]} 30. Qxb3 {[%emt 0:02:50]} Re6 {[%emt 0:10:03] aiming for ...Rb6.} 31. Rxe5 {[%emt 0:00:55]} Rb6 {[%emt 0:00:10]} 32. Qc3 {[%emt 0:01:14]} Qd7 {[%emt 0:00:19]} 33. d5 {[%emt 0:02:43]} f6 {[%emt 0:03:56]} 34. Re7 {[%emt 0:02:13]} Qxd5 {[%emt 0:01:30]} 35. Re8+ {[%emt 0:00:27]} (35. Qxc7 {leads to mate.} Qd3+ (35... Qa2+ 36. Kc2 Rxb2+ 37. Kd3 Rd2+ 38. Kc3 Ra3+ 39. Kb4 Rb3+ 40. Kc5 Qc2#) 36. Qc2 Rxb2+ (36... Ra1+ $2 37. Kxa1 Ra6+ 38. Kb1 $18) 37. Kxb2 Qa3+ 38. Kb1 Qa1#) 35... Rxe8 {[%emt 0:00:05]} 36. Rxe8+ {[%emt 0:00:04]} Kf7 {[%emt 0:00:05]} 37. Qxc7+ {[%emt 0:00:09]} (37. Re1 $11 Rc6 38. Qa3 (38. Qe3 Re6 $11)) 37... Kxe8 $14 {[%emt 0:00:05]} 38. Qxb6 {[%emt 0:00:03]} Qd1+ {[%emt 0:00:11] An interesting draw.   Weighted Error Value: White=0.08 (flawless) /Black=0.07 (flawless) .  Mistake:       	White=2     	Black=1      Inaccurate:     	White=1     	Black=1      OK:         	White=12    	Black=15     Best:        	---       	Black=3      Strong:       	---       	Black=1} 1/2-1/2

[Event "Serbian League 2024"]
[Site "Bajina Basta"]
[Date "2024.10.01"]
[Round "5.7"]
[White "Nadj Hedjesi, Balind"]
[Black "Indjic, Aleksandar"]
[Result "1/2-1/2"]
[Annotator "TA"]
[ECO "A45"]
[WhiteElo "2212"]
[BlackElo "2611"]
[PlyCount "23"]
[EventDate "2024.09.26"]
[EventType "team-tourn"]
[EventCountry "SRB"]
[SourceTitle "playchess.com"]
[Source "ChessBase"]
[SourceQuality "1"]
[TimeControl "40/5400+30:1800+30"]

{[%evp 9,23,-29,-2,-10,5,13,0,0,25,21,11,14,61,61,55,60]} 1. d4 {[%emt 0:00:26]} Nf6 {[%emt 0:00:15]} 2. g4 {[%emt 0:00:03]} h6 {[%emt 0:06:30]} 3. Bg2 {[%emt 0:04:57]} d5 {[%emt 0:00:14]} 4. h3 {[%emt 0:00:07]} c5 {[%emt 0:00:12]} 5. c4 {[%emt 0:03:42]} e6 {[%emt 0:08:48][%cal Be7e6,Be6d5,Bd5e4][%mdl 32]} 6. cxd5 {[%emt 0:01:34]} exd5 {[%emt 0:02:39]} 7. Nf3 {[%emt 0:00:58]} Nc6 {[%emt 0:00:05]} 8. Nc3 {[%emt 0:01:48] The position is equal.} Ne4 {[%emt 0:13:43]} 9. Nxe4 {[%emt 0:08:21]} dxe4 {[%emt 0:00:16]} 10. Ne5 {[%emt 0:00:30] Black should prevent Nxc6.} Qd5 {[%emt 0:10:57]} ({Much weaker is} 10... Nxd4 $6 11. e3 Nc6 12. Nxc6 bxc6 13. Bxe4 $16) (10... cxd4 $11 {was preferrable.} 11. Nxc6 bxc6) 11. Nxc6 $14 {[%emt 0:04:37]} bxc6 {[%emt 0:00:31]} 12. Be3 {[%emt 0:01:59] Black did not feel at home in the position after the opening.   Weighted Error Value: White=0.01 (flawless) /Black=0.25 (precise) .  Mistake:       	---       	Black=1      OK:         	White=4     	Black=1      Best:        	White=1     	---} 1/2-1/2